[Event "Late-Titled-Tuesday-Blitz-February-13-2024"]
[Site "Chess.com"]
[Date "2024.02.13"]
[Round "6"]
[White "nitpicker"]
[Black "maurovargas01"]
[Result "0-1"]
[WhiteElo "2230"]
[BlackElo "1894"]
[TimeControl "180+1"]
[EndTime "15:06:35 PST"]
[Termination "maurovargas01 won on time"]

1. d4 {[%clk 0:03:00.9]} 1... d5 {[%clk 0:02:43.3]} 2. c4 {[%clk 0:03:00.8]}
2... c6 {[%clk 0:02:42.9]} 3. Nf3 {[%clk 0:03:01]} 3... e6 {[%clk 0:02:42.9]} 4.
Qb3 {[%clk 0:03:01]} 4... dxc4 {[%clk 0:02:42.1]} 5. Qxc4 {[%clk 0:03:00.7]}
5... b5 {[%clk 0:02:42.4]} 6. Qc2 {[%clk 0:03:00.8]} 6... Bb7 {[%clk 0:02:41.2]}
7. Nbd2 {[%clk 0:03:00.4]} 7... Nf6 {[%clk 0:02:40.9]} 8. e3 {[%clk 0:02:48.7]}
8... a6 {[%clk 0:02:40.1]} 9. Nb3 {[%clk 0:02:43.9]} 9... Nbd7 {[%clk
0:02:36.9]} 10. Bd2 {[%clk 0:02:37.8]} 10... Bd6 {[%clk 0:02:35.4]} 11. Nc5
{[%clk 0:02:32.6]} 11... Nxc5 {[%clk 0:02:29.4]} 12. dxc5 {[%clk 0:02:31.8]}
12... Bc7 {[%clk 0:02:23.3]} 13. a4 {[%clk 0:02:13.9]} 13... O-O {[%clk
0:02:21.2]} 14. Be2 {[%clk 0:02:04.5]} 14... Qd5 {[%clk 0:02:16.1]} 15. Rd1
{[%clk 0:01:47.1]} 15... Qh5 {[%clk 0:02:09.9]} 16. O-O {[%clk 0:01:36.9]} 16...
Ng4 {[%clk 0:02:06.6]} 17. g3 {[%clk 0:01:21]} 17... e5 {[%clk 0:02:01.9]} 18.
e4 {[%clk 0:01:02]} 18... Bc8 {[%clk 0:01:59]} 19. Bc3 {[%clk 0:00:36.5]} 19...
Be6 {[%clk 0:01:53.4]} 20. Kg2 {[%clk 0:00:26.7]} 20... Rae8 {[%clk 0:01:46.3]}
21. Rh1 {[%clk 0:00:23.7]} 21... f5 {[%clk 0:01:39.3]} 22. h3 {[%clk 0:00:23.1]}
22... fxe4 {[%clk 0:01:32.7]} 23. hxg4 {[%clk 0:00:19.1]} 23... exf3+ {[%clk
0:01:32.4]} 24. Bxf3 {[%clk 0:00:19.7]} 24... Qg6 {[%clk 0:01:17.5]} 25. Qxg6
{[%clk 0:00:14.5]} 25... hxg6 {[%clk 0:01:17.5]} 26. Bxc6 {[%clk 0:00:14.2]}
26... Rd8 {[%clk 0:01:12.4]} 27. f3 {[%clk 0:00:12.4]} 27... Bc4 {[%clk
0:00:55.8]} 28. Be4 {[%clk 0:00:09.5]} 28... bxa4 {[%clk 0:00:46.2]} 29. Bxg6
{[%clk 0:00:07.4]} 29... Be2 {[%clk 0:00:42.6]} 30. Bh7+ {[%clk 0:00:04.8]}
30... Kf7 {[%clk 0:00:39.6]} 31. Rxd8 {[%clk 0:00:02.1]} 31... Bxd8 {[%clk
0:00:37.3]} 32. Be4 {[%clk 0:00:02.1]} 32... Ke6 {[%clk 0:00:34.3]} 0-1

[Event "Late-Titled-Tuesday-Blitz-February-13-2024"]
[Site "Chess.com"]
[Date "2024.02.13"]
[Round "6"]
[White "jinxy2009"]
[Black "a_kandil"]
[Result "0-1"]
[WhiteElo "2241"]
[BlackElo "2485"]
[TimeControl "180+1"]
[EndTime "15:06:36 PST"]
[Termination "a_kandil won on time"]

1. e4 {[%clk 0:02:13.2]} 1... c5 {[%clk 0:02:58.5]} 2. Nf3 {[%clk 0:02:12.9]}
2... d6 {[%clk 0:02:57.8]} 3. d4 {[%clk 0:02:13.8]} 3... cxd4 {[%clk 0:02:58.7]}
4. Nxd4 {[%clk 0:02:14.7]} 4... Nf6 {[%clk 0:02:58.9]} 5. Nc3 {[%clk 0:02:15.3]}
5... a6 {[%clk 0:02:59.3]} 6. Be3 {[%clk 0:02:15.8]} 6... e5 {[%clk 0:02:57.9]}
7. Nb3 {[%clk 0:02:15.4]} 7... Be7 {[%clk 0:02:56.6]} 8. f3 {[%clk 0:02:16]}
8... h5 {[%clk 0:02:54.8]} 9. Be2 {[%clk 0:02:10.9]} 9... Be6 {[%clk 0:02:45.9]}
10. Qd2 {[%clk 0:02:09.3]} 10... Nbd7 {[%clk 0:02:43.8]} 11. Nd5 {[%clk
0:01:59.4]} 11... Nxd5 {[%clk 0:02:41.5]} 12. exd5 {[%clk 0:02:00.3]} 12... Bf5
{[%clk 0:02:42]} 13. Na5 {[%clk 0:01:54.7]} 13... Qc7 {[%clk 0:02:34.1]} 14. c4
{[%clk 0:01:49.6]} 14... O-O {[%clk 0:02:21]} 15. b4 {[%clk 0:01:44.4]} 15...
Nb6 {[%clk 0:02:14.5]} 16. O-O {[%clk 0:01:40.4]} 16... Nd7 {[%clk 0:02:07.9]}
17. Rac1 {[%clk 0:01:28.2]} 17... b6 {[%clk 0:01:29.5]} 18. Nc6 {[%clk 0:01:20]}
18... Bf6 {[%clk 0:01:30]} 19. c5 {[%clk 0:01:15.8]} 19... bxc5 {[%clk
0:01:30.2]} 20. bxc5 {[%clk 0:01:16.1]} 20... Nxc5 {[%clk 0:01:29.7]} 21. Rxc5
{[%clk 0:01:03.2]} 21... dxc5 {[%clk 0:01:30.6]} 22. Bxc5 {[%clk 0:01:03.5]}
22... Rfd8 {[%clk 0:01:25.9]} 23. Rd1 {[%clk 0:00:54.5]} 23... Rac8 {[%clk
0:01:17.1]} 24. Qb4 {[%clk 0:00:51.7]} 24... Rxd5 {[%clk 0:01:08]} 25. Rxd5
{[%clk 0:00:50.2]} 25... Qxc6 {[%clk 0:01:08.3]} 26. Bc4 {[%clk 0:00:39.1]}
26... Be6 {[%clk 0:01:07.8]} 27. Rd6 {[%clk 0:00:16.6]} 27... Qxc5+ {[%clk
0:01:07.1]} 28. Qxc5 {[%clk 0:00:16.6]} 28... Rxc5 {[%clk 0:01:08]} 29. Bxe6
{[%clk 0:00:16.7]} 29... fxe6 {[%clk 0:01:08.3]} 30. Rxe6 {[%clk 0:00:17.2]}
30... Ra5 {[%clk 0:01:08.5]} 31. Kf2 {[%clk 0:00:14.3]} 31... Rxa2+ {[%clk
0:01:07.8]} 32. Kg3 {[%clk 0:00:14.4]} 32... a5 {[%clk 0:01:06.4]} 33. Ra6
{[%clk 0:00:14]} 33... a4 {[%clk 0:01:06.3]} 34. h4 {[%clk 0:00:09.7]} 34... a3
{[%clk 0:01:05.2]} 35. Kh3 {[%clk 0:00:10.1]} 35... Ra1 {[%clk 0:01:04.4]} 36.
g4 {[%clk 0:00:10.1]} 36... e4 {[%clk 0:01:03.1]} 37. fxe4 {[%clk 0:00:08.5]}
37... hxg4+ {[%clk 0:00:59.5]} 38. Kxg4 {[%clk 0:00:08.6]} 38... a2 {[%clk
0:00:59.6]} 39. Kh5 {[%clk 0:00:08.9]} 39... Kh7 {[%clk 0:00:59.1]} 40. Ra7
{[%clk 0:00:07.5]} 40... Rg1 {[%clk 0:00:58.6]} 0-1

[Event "Late-Titled-Tuesday-Blitz-February-13-2024"]
[Site "Chess.com"]
[Date "2024.02.13"]
[Round "6"]
[White "ansko1999"]
[Black "DenLaz"]
[Result "0-1"]
[WhiteElo "2638"]
[BlackElo "3054"]
[TimeControl "180+1"]
[EndTime "15:06:37 PST"]
[Termination "DenLaz won by resignation"]

1. Nf3 {[%clk 0:03:00.9]} 1... d5 {[%clk 0:02:59.5]} 2. e3 {[%clk 0:03:00.4]}
2... Nf6 {[%clk 0:02:59.8]} 3. b3 {[%clk 0:03:00.3]} 3... c6 {[%clk 0:02:59.8]}
4. Bb2 {[%clk 0:03:00.5]} 4... Bg4 {[%clk 0:03:00.5]} 5. Be2 {[%clk 0:02:59.6]}
5... Nbd7 {[%clk 0:03:01]} 6. c4 {[%clk 0:02:58.7]} 6... e6 {[%clk 0:03:01.5]}
7. d4 {[%clk 0:02:56.1]} 7... Bd6 {[%clk 0:03:01.9]} 8. O-O {[%clk 0:02:54.4]}
8... O-O {[%clk 0:03:02.3]} 9. Nbd2 {[%clk 0:02:53.9]} 9... Qe7 {[%clk
0:03:02.5]} 10. Qc2 {[%clk 0:02:46.7]} 10... Rac8 {[%clk 0:02:58.8]} 11. h3
{[%clk 0:02:45.3]} 11... Bh5 {[%clk 0:02:56.2]} 12. Rfe1 {[%clk 0:02:39.3]}
12... Rfe8 {[%clk 0:02:55.7]} 13. Rac1 {[%clk 0:02:38.9]} 13... a6 {[%clk
0:02:55.3]} 14. e4 {[%clk 0:02:30]} 14... dxe4 {[%clk 0:02:53.2]} 15. Nxe4
{[%clk 0:02:30]} 15... Nxe4 {[%clk 0:02:52.8]} 16. Qxe4 {[%clk 0:02:30]} 16...
Nf6 {[%clk 0:02:53.4]} 17. Qb1 {[%clk 0:02:21.5]} 17... Bb4 {[%clk 0:02:51.5]}
18. Bc3 {[%clk 0:02:19.1]} 18... Bxc3 {[%clk 0:02:51.3]} 19. Rxc3 {[%clk
0:02:20]} 19... Rcd8 {[%clk 0:02:51.7]} 20. Rd3 {[%clk 0:02:16.3]} 20... Bg6
{[%clk 0:02:51.6]} 21. Qb2 {[%clk 0:02:11.3]} 21... Bxd3 {[%clk 0:02:50.3]} 22.
Bxd3 {[%clk 0:02:12.2]} 22... Qd6 {[%clk 0:02:50.2]} 23. b4 {[%clk 0:02:07.5]}
23... Rd7 {[%clk 0:02:47.4]} 24. a4 {[%clk 0:02:07.1]} 24... Red8 {[%clk
0:02:47.4]} 25. Rd1 {[%clk 0:02:05.7]} 25... Qc7 {[%clk 0:02:44.1]} 26. Ne5
{[%clk 0:02:02.7]} 26... Rd6 {[%clk 0:02:42.7]} 27. f4 {[%clk 0:01:45.2]} 27...
h6 {[%clk 0:02:37.7]} 28. c5 {[%clk 0:01:35.2]} 28... Rxd4 {[%clk 0:02:29.8]}
29. Bh7+ {[%clk 0:01:34.5]} 29... Kxh7 {[%clk 0:02:30.3]} 30. Rxd4 {[%clk
0:01:34.9]} 30... Rxd4 {[%clk 0:02:31.2]} 31. Qxd4 {[%clk 0:01:35.6]} 31... Nd5
{[%clk 0:02:31.8]} 32. a5 {[%clk 0:01:27.7]} 32... f6 {[%clk 0:02:26.8]} 33. Nd3
{[%clk 0:01:24.9]} 33... Qf7 {[%clk 0:02:26.6]} 34. Qe4+ {[%clk 0:01:23.7]}
34... Qg6 {[%clk 0:02:26.5]} 35. Qf3 {[%clk 0:01:13.5]} 35... Kg8 {[%clk
0:02:25.1]} 36. Kf2 {[%clk 0:01:12.6]} 36... Kf8 {[%clk 0:02:20.1]} 37. g4
{[%clk 0:01:12]} 37... Qe8 {[%clk 0:02:18.4]} 38. Qe4 {[%clk 0:01:10.7]} 38...
Qd7 {[%clk 0:02:16.9]} 39. Kf3 {[%clk 0:01:06.9]} 39... Ne7 {[%clk 0:02:12.3]}
40. Qh7 {[%clk 0:00:52.7]} 40... Qd5+ {[%clk 0:02:11.4]} 41. Ke3 {[%clk
0:00:52.6]} 41... Qg2 {[%clk 0:02:10.9]} 42. Qh8+ {[%clk 0:00:41.6]} 42... Kf7
{[%clk 0:02:10.7]} 43. Qb8 {[%clk 0:00:39.1]} 43... Nd5+ {[%clk 0:01:38.1]} 44.
Kd4 {[%clk 0:00:37.8]} 44... Qg1+ {[%clk 0:01:38.7]} 45. Kc4 {[%clk 0:00:34.9]}
45... Qa1 {[%clk 0:01:37.2]} 46. Qxb7+ {[%clk 0:00:15.4]} 46... Kg6 {[%clk
0:01:36.6]} 47. f5+ {[%clk 0:00:15.5]} 47... Kh7 {[%clk 0:01:37.1]} 48. Nb2
{[%clk 0:00:09.1]} 48... Qxb2 {[%clk 0:01:35.8]} 49. Kd3 {[%clk 0:00:09.3]}
49... Qc3+ {[%clk 0:01:32.1]} 50. Ke2 {[%clk 0:00:09.7]} 50... Qc2+ {[%clk
0:01:32.1]} 51. Kf3 {[%clk 0:00:09.6]} 51... Qd3+ {[%clk 0:01:32.5]} 52. Kf2
{[%clk 0:00:09]} 52... Qe3+ {[%clk 0:01:32.5]} 53. Kf1 {[%clk 0:00:09.1]} 53...
exf5 {[%clk 0:01:26.1]} 54. gxf5 {[%clk 0:00:08.5]} 54... Qf3+ {[%clk
0:01:21.8]} 55. Ke1 {[%clk 0:00:08.3]} 55... Qe4+ {[%clk 0:01:19.8]} 56. Kd2
{[%clk 0:00:08.4]} 56... Qxb4+ {[%clk 0:01:19.4]} 0-1

[Event "Late-Titled-Tuesday-Blitz-February-13-2024"]
[Site "Chess.com"]
[Date "2024.02.13"]
[Round "6"]
[White "MetiForce"]
[Black "FairChess_on_YouTube"]
[Result "1-0"]
[WhiteElo "2875"]
[BlackElo "3069"]
[TimeControl "180+1"]
[EndTime "15:06:38 PST"]
[Termination "MetiForce won on time"]

1. d4 {[%clk 0:02:51.3]} 1... d5 {[%clk 0:02:55.1]} 2. c4 {[%clk 0:02:50.9]}
2... dxc4 {[%clk 0:02:55.6]} 3. Nf3 {[%clk 0:02:50.5]} 3... Nf6 {[%clk
0:02:54.7]} 4. e3 {[%clk 0:02:50.9]} 4... e6 {[%clk 0:02:55.1]} 5. Bxc4 {[%clk
0:02:50.2]} 5... c5 {[%clk 0:02:55.7]} 6. O-O {[%clk 0:02:48.9]} 6... a6 {[%clk
0:02:56.1]} 7. dxc5 {[%clk 0:02:45.4]} 7... Bxc5 {[%clk 0:02:53.5]} 8. Qxd8+
{[%clk 0:02:42.2]} 8... Kxd8 {[%clk 0:02:54.4]} 9. a3 {[%clk 0:02:42.6]} 9...
Ke7 {[%clk 0:02:53.6]} 10. Bd2 {[%clk 0:02:40.8]} 10... Rd8 {[%clk 0:02:50.6]}
11. Rc1 {[%clk 0:02:36.9]} 11... Nbd7 {[%clk 0:02:49.2]} 12. Be2 {[%clk
0:02:29.9]} 12... b6 {[%clk 0:02:44]} 13. b4 {[%clk 0:02:29.5]} 13... Bd6 {[%clk
0:02:43.7]} 14. Nd4 {[%clk 0:02:30]} 14... Bb7 {[%clk 0:02:40.2]} 15. Bf3 {[%clk
0:02:29.5]} 15... Bxf3 {[%clk 0:02:37.9]} 16. gxf3 {[%clk 0:02:30.4]} 16... Rdc8
{[%clk 0:02:30.9]} 17. Nc3 {[%clk 0:02:30.2]} 17... Ne5 {[%clk 0:02:29.4]} 18.
f4 {[%clk 0:02:21.4]} 18... Nc4 {[%clk 0:02:23.7]} 19. Be1 {[%clk 0:02:21.2]}
19... g6 {[%clk 0:02:04.2]} 20. Kf1 {[%clk 0:02:20.2]} 20... e5 {[%clk 0:02:03]}
21. fxe5 {[%clk 0:02:15.3]} 21... Bxe5 {[%clk 0:02:03.9]} 22. Nf3 {[%clk
0:02:14]} 22... Bd6 {[%clk 0:01:55.2]} 23. h3 {[%clk 0:02:14.3]} 23... Rc7
{[%clk 0:01:41.7]} 24. Rd1 {[%clk 0:02:01.6]} 24... Rac8 {[%clk 0:01:36.8]} 25.
Nd5+ {[%clk 0:02:01.8]} 25... Nxd5 {[%clk 0:01:36.1]} 26. Rxd5 {[%clk
0:02:02.7]} 26... b5 {[%clk 0:01:21.9]} 27. Rd4 {[%clk 0:01:48.5]} 27... Rd7
{[%clk 0:01:13.1]} 28. a4 {[%clk 0:01:45]} 28... f5 {[%clk 0:00:53.7]} 29. axb5
{[%clk 0:01:38.7]} 29... axb5 {[%clk 0:00:54.6]} 30. Ra6 {[%clk 0:01:36.5]}
30... Bb8 {[%clk 0:00:31.8]} 31. Rh4 {[%clk 0:01:31.7]} 31... Kd8 {[%clk
0:00:18.6]} 32. Nd4 {[%clk 0:01:31.5]} 32... Be5 {[%clk 0:00:16.2]} 33. Nxb5
{[%clk 0:01:30]} 33... Nb2 {[%clk 0:00:06.2]} 34. Na7 {[%clk 0:01:22.6]} 34...
Rd1 {[%clk 0:00:03.2]} 35. Nc6+ {[%clk 0:01:21.6]} 35... Rxc6 {[%clk 0:00:02.8]}
36. Rxc6 {[%clk 0:01:20]} 36... Nd3 {[%clk 0:00:03.5]} 37. Ke2 {[%clk
0:01:18.9]} 37... Rxe1+ {[%clk 0:00:03.8]} 38. Kxd3 {[%clk 0:01:19.2]} 38... Kd7
{[%clk 0:00:03.2]} 39. b5 {[%clk 0:01:18.7]} 39... h5 {[%clk 0:00:01.8]} 40. Rb4
{[%clk 0:01:17.8]} 40... Bd6 {[%clk 0:00:01.4]} 41. Rd4 {[%clk 0:01:17.4]} 41...
Rd1+ {[%clk 0:00:01.7]} 42. Ke2 {[%clk 0:01:17.7]} 42... Rxd4 {[%clk 0:00:02.6]}
43. exd4 {[%clk 0:01:18.6]} 43... Ke6 {[%clk 0:00:03]} 44. Kd3 {[%clk
0:01:18.6]} 44... Kd5 {[%clk 0:00:03.9]} 45. Rc2 {[%clk 0:01:18.3]} 45... g5
{[%clk 0:00:04.4]} 46. b6 {[%clk 0:01:18.6]} 46... g4 {[%clk 0:00:04.5]} 47.
hxg4 {[%clk 0:01:14.7]} 47... fxg4 {[%clk 0:00:05.4]} 48. b7 {[%clk 0:01:15]}
48... h4 {[%clk 0:00:05.7]} 49. Rc5+ {[%clk 0:01:14.5]} 49... Ke6 {[%clk
0:00:05.4]} 50. Rc6 {[%clk 0:01:15.1]} 1-0

[Event "Late-Titled-Tuesday-Blitz-February-13-2024"]
[Site "Chess.com"]
[Date "2024.02.13"]
[Round "6"]
[White "sotochess"]
[Black "MikaelyanArman"]
[Result "0-1"]
[WhiteElo "2587"]
[BlackElo "2813"]
[TimeControl "180+1"]
[EndTime "15:06:38 PST"]
[Termination "MikaelyanArman won on time"]

1. e4 {[%clk 0:03:00.4]} 1... c5 {[%clk 0:02:58.5]} 2. Nf3 {[%clk 0:02:59.9]}
2... h6 {[%clk 0:02:52.1]} 3. c4 {[%clk 0:02:47.4]} 3... d6 {[%clk 0:02:49.4]}
4. d4 {[%clk 0:02:46.7]} 4... cxd4 {[%clk 0:02:43.7]} 5. Nxd4 {[%clk 0:02:46.5]}
5... Nf6 {[%clk 0:02:44.1]} 6. Nc3 {[%clk 0:02:45.6]} 6... e6 {[%clk 0:02:36.1]}
7. Be2 {[%clk 0:02:44.4]} 7... Be7 {[%clk 0:02:36.5]} 8. O-O {[%clk 0:02:43.4]}
8... O-O {[%clk 0:02:37.1]} 9. Be3 {[%clk 0:02:43.1]} 9... a6 {[%clk 0:02:31.6]}
10. a4 {[%clk 0:02:36]} 10... b6 {[%clk 0:02:31.3]} 11. a5 {[%clk 0:02:35.4]}
11... bxa5 {[%clk 0:02:29.9]} 12. Nb3 {[%clk 0:02:34.7]} 12... Nc6 {[%clk
0:02:30.5]} 13. f3 {[%clk 0:02:33.7]} 13... Rb8 {[%clk 0:02:30.5]} 14. Kh1
{[%clk 0:02:31.9]} 14... Nd7 {[%clk 0:02:28]} 15. Re1 {[%clk 0:02:15.4]} 15...
Nc5 {[%clk 0:02:26.4]} 16. Ra3 {[%clk 0:02:00.9]} 16... Qc7 {[%clk 0:02:15.4]}
17. Bf1 {[%clk 0:01:50.4]} 17... Rb4 {[%clk 0:02:09.1]} 18. Nd4 {[%clk
0:01:38.6]} 18... Ne5 {[%clk 0:02:07]} 19. b3 {[%clk 0:01:31.9]} 19... Bd7
{[%clk 0:02:03.7]} 20. Qc2 {[%clk 0:01:22.9]} 20... Rfb8 {[%clk 0:02:02.4]} 21.
Rea1 {[%clk 0:01:05.3]} 21... Bf6 {[%clk 0:01:55.6]} 22. Rxa5 {[%clk 0:00:56.9]}
22... Nxb3 {[%clk 0:01:54.3]} 23. Nxb3 {[%clk 0:00:56.3]} 23... Rxb3 {[%clk
0:01:55.2]} 24. Bd4 {[%clk 0:00:46.5]} 24... Nxc4 {[%clk 0:01:49.1]} 25. Bxf6
{[%clk 0:00:42.2]} 25... Nxa5 {[%clk 0:01:46.7]} 26. Bd4 {[%clk 0:00:40.5]}
26... Nc6 {[%clk 0:01:45.4]} 27. Nd5 {[%clk 0:00:37.6]} 27... Qd8 {[%clk
0:01:39.7]} 28. Bb6 {[%clk 0:00:22.2]} 28... R3xb6 {[%clk 0:01:37.7]} 29. Nxb6
{[%clk 0:00:22.2]} 29... Rxb6 {[%clk 0:01:38.6]} 30. Qd2 {[%clk 0:00:19.6]}
30... Qe7 {[%clk 0:01:34.7]} 31. Rd1 {[%clk 0:00:18.7]} 31... Ne5 {[%clk
0:01:33.1]} 32. Qd4 {[%clk 0:00:17]} 32... Rc6 {[%clk 0:01:32.2]} 33. f4 {[%clk
0:00:16.5]} 33... Ng6 {[%clk 0:01:32.5]} 34. g3 {[%clk 0:00:14.3]} 34... d5
{[%clk 0:01:25.9]} 35. exd5 {[%clk 0:00:12.9]} 35... exd5 {[%clk 0:01:25.8]} 36.
Bg2 {[%clk 0:00:13.1]} 36... Re6 {[%clk 0:01:24.9]} 37. Bxd5 {[%clk 0:00:06.5]}
37... Bc6 {[%clk 0:01:19.4]} 38. Bxc6 {[%clk 0:00:05.9]} 38... Rxc6 {[%clk
0:01:20.3]} 39. f5 {[%clk 0:00:05.8]} 39... Ne5 {[%clk 0:01:17]} 40. Re1 {[%clk
0:00:05.4]} 40... Rc1 {[%clk 0:00:56.8]} 41. Rxc1 {[%clk 0:00:04.6]} 41... Qb7+
{[%clk 0:00:56.8]} 42. Kg1 {[%clk 0:00:03.5]} 42... Nf3+ {[%clk 0:00:56.8]} 0-1

[Event "Late-Titled-Tuesday-Blitz-February-13-2024"]
[Site "Chess.com"]
[Date "2024.02.13"]
[Round "6"]
[White "zano2023"]
[Black "IngOscarArdila"]
[Result "1-0"]
[WhiteElo "2163"]
[BlackElo "2303"]
[TimeControl "180+1"]
[EndTime "15:06:38 PST"]
[Termination "zano2023 won by resignation"]

1. d4 {[%clk 0:03:00.3]} 1... Nf6 {[%clk 0:03:00]} 2. Nd2 {[%clk 0:02:57.6]}
2... d5 {[%clk 0:02:58.3]} 3. Ngf3 {[%clk 0:02:57.8]} 3... e6 {[%clk 0:02:58.6]}
4. e3 {[%clk 0:02:57.5]} 4... Be7 {[%clk 0:02:58.9]} 5. Bd3 {[%clk 0:02:57.4]}
5... O-O {[%clk 0:02:59.2]} 6. O-O {[%clk 0:02:57.3]} 6... Nbd7 {[%clk
0:02:59.7]} 7. Qe2 {[%clk 0:02:55.2]} 7... Re8 {[%clk 0:02:53.8]} 8. e4 {[%clk
0:02:54.9]} 8... dxe4 {[%clk 0:02:54.2]} 9. Nxe4 {[%clk 0:02:55.1]} 9... Nxe4
{[%clk 0:02:53.7]} 10. Qxe4 {[%clk 0:02:56]} 10... Nf6 {[%clk 0:02:54]} 11. Qh4
{[%clk 0:02:56.7]} 11... c5 {[%clk 0:02:25.8]} 12. Bg5 {[%clk 0:02:52.7]} 12...
g6 {[%clk 0:02:14.3]} 13. dxc5 {[%clk 0:02:49.5]} 13... Nd5 {[%clk 0:01:35.8]}
14. c4 {[%clk 0:02:34.1]} 14... Bxg5 {[%clk 0:01:24.4]} 15. Nxg5 {[%clk
0:02:35]} 15... Nf6 {[%clk 0:01:24.7]} 16. Rad1 {[%clk 0:02:31.6]} 16... Qe7
{[%clk 0:01:23.8]} 17. b4 {[%clk 0:02:26.7]} 17... Kg7 {[%clk 0:01:23.7]} 18.
Rfe1 {[%clk 0:02:18]} 18... h6 {[%clk 0:01:23.4]} 19. Nf3 {[%clk 0:02:17.3]}
19... a5 {[%clk 0:01:20.3]} 20. a3 {[%clk 0:02:09.4]} 20... axb4 {[%clk
0:01:19.7]} 21. axb4 {[%clk 0:02:09.2]} 21... Ra4 {[%clk 0:01:20.2]} 22. Rb1
{[%clk 0:02:05.7]} 22... Rd8 {[%clk 0:01:18.2]} 23. Bc2 {[%clk 0:02:01]} 23...
Ra2 {[%clk 0:01:15.7]} 24. Bb3 {[%clk 0:01:48.8]} 24... Ra3 {[%clk 0:01:12.8]}
25. Ne5 {[%clk 0:01:42.2]} 25... Bd7 {[%clk 0:01:08.7]} 26. Ng4 {[%clk
0:01:39.8]} 26... h5 {[%clk 0:01:04.3]} 27. Ne5 {[%clk 0:01:33.2]} 27... Be8
{[%clk 0:00:53.6]} 28. Red1 {[%clk 0:01:08.9]} 28... Rxd1+ {[%clk 0:00:49.2]}
29. Bxd1 {[%clk 0:01:09.8]} 29... Qd8 {[%clk 0:00:30.7]} 30. Bf3 {[%clk
0:01:08.5]} 30... Qc7 {[%clk 0:00:14.7]} 31. Qd4 {[%clk 0:01:05.5]} 31... Bc6
{[%clk 0:00:13.1]} 32. Bxc6 {[%clk 0:00:51.8]} 32... bxc6 {[%clk 0:00:14]} 33.
b5 {[%clk 0:00:48.3]} 33... cxb5 {[%clk 0:00:13.8]} 34. cxb5 {[%clk 0:00:48.1]}
34... Qa5 {[%clk 0:00:14.3]} 35. Nd7 {[%clk 0:00:43.4]} 35... Qc3 {[%clk
0:00:14.4]} 36. Qxc3 {[%clk 0:00:39.5]} 36... Rxc3 {[%clk 0:00:15.3]} 37. Nxf6
{[%clk 0:00:38.8]} 37... Kxf6 {[%clk 0:00:15.8]} 38. b6 {[%clk 0:00:36.7]} 38...
Rxc5 {[%clk 0:00:15.8]} 39. b7 {[%clk 0:00:35.9]} 1-0

[Event "Late-Titled-Tuesday-Blitz-February-13-2024"]
[Site "Chess.com"]
[Date "2024.02.13"]
[Round "6"]
[White "dorpato"]
[Black "NovakRatko"]
[Result "0-1"]
[WhiteElo "2115"]
[BlackElo "2325"]
[TimeControl "180+1"]
[EndTime "15:06:42 PST"]
[Termination "NovakRatko won on time"]

1. e4 {[%clk 0:02:58.5]} 1... d5 {[%clk 0:02:55.5]} 2. e5 {[%clk 0:02:57.1]}
2... c6 {[%clk 0:02:56.2]} 3. d4 {[%clk 0:02:52.5]} 3... e6 {[%clk 0:02:56.5]}
4. Nf3 {[%clk 0:02:43.3]} 4... c5 {[%clk 0:02:56.4]} 5. c3 {[%clk 0:02:31.5]}
5... Nc6 {[%clk 0:02:55.8]} 6. a3 {[%clk 0:02:18.2]} 6... a5 {[%clk 0:02:54.2]}
7. a4 {[%clk 0:02:16.3]} 7... cxd4 {[%clk 0:02:53.9]} 8. cxd4 {[%clk 0:02:12.4]}
8... Bb4+ {[%clk 0:02:53]} 9. Bd2 {[%clk 0:02:11]} 9... Nge7 {[%clk 0:02:53.2]}
10. Bb5 {[%clk 0:01:45.7]} 10... O-O {[%clk 0:02:50.6]} 11. O-O {[%clk 0:01:42]}
11... Nf5 {[%clk 0:02:50.2]} 12. Bc3 {[%clk 0:01:27.6]} 12... Qb6 {[%clk
0:02:37.4]} 13. Bxc6 {[%clk 0:01:18.5]} 13... bxc6 {[%clk 0:02:36.6]} 14. Nbd2
{[%clk 0:01:09.5]} 14... c5 {[%clk 0:02:35.4]} 15. Nb3 {[%clk 0:00:56.6]} 15...
cxd4 {[%clk 0:02:25.7]} 16. Nfxd4 {[%clk 0:00:49.3]} 16... Nh4 {[%clk
0:02:13.8]} 17. g3 {[%clk 0:00:41.1]} 17... Ng6 {[%clk 0:02:12.3]} 18. f4 {[%clk
0:00:33.5]} 18... Ba6 {[%clk 0:02:11.2]} 19. Rf2 {[%clk 0:00:24.3]} 19... Rab8
{[%clk 0:02:06.9]} 20. Kg2 {[%clk 0:00:19.2]} 20... Bc4 {[%clk 0:01:54.9]} 21.
Bxb4 {[%clk 0:00:16.7]} 21... Qxb4 {[%clk 0:01:50.9]} 22. Ra3 {[%clk 0:00:16.9]}
22... Rfc8 {[%clk 0:01:37.7]} 23. Rc2 {[%clk 0:00:15]} 23... Bxb3 {[%clk
0:01:10.3]} 24. Rxb3 {[%clk 0:00:12.5]} 24... Qf8 {[%clk 0:00:47.1]} 25. Rxb8
{[%clk 0:00:10.1]} 25... Rxb8 {[%clk 0:00:46.8]} 26. Qd3 {[%clk 0:00:09.2]}
26... h6 {[%clk 0:00:44.7]} 27. Nb5 {[%clk 0:00:08.3]} 27... Ne7 {[%clk
0:00:42.3]} 28. Qc3 {[%clk 0:00:08]} 28... Nf5 {[%clk 0:00:42]} 29. Re2 {[%clk
0:00:06.2]} 29... Qb4 {[%clk 0:00:36.7]} 30. Qc7 {[%clk 0:00:05.9]} 30... Rf8
{[%clk 0:00:34]} 31. Nd6 {[%clk 0:00:03.7]} 31... Nd4 {[%clk 0:00:31.1]} 32. Rd2
{[%clk 0:00:03]} 32... Nb3 {[%clk 0:00:29.8]} 33. Rc2 {[%clk 0:00:02.2]} 33...
Qxa4 {[%clk 0:00:29.3]} 0-1

[Event "Late-Titled-Tuesday-Blitz-February-13-2024"]
[Site "Chess.com"]
[Date "2024.02.13"]
[Round "6"]
[White "Hikaru"]
[Black "TanitoluwaAps116"]
[Result "1-0"]
[WhiteElo "3313"]
[BlackElo "2779"]
[TimeControl "180+1"]
[EndTime "15:06:44 PST"]
[Termination "Hikaru won on time"]

1. e4 {[%clk 0:03:00.9]} 1... c5 {[%clk 0:02:59.3]} 2. Nf3 {[%clk 0:03:00.6]}
2... e6 {[%clk 0:02:59.9]} 3. c3 {[%clk 0:03:00.7]} 3... Nf6 {[%clk 0:02:59.9]}
4. e5 {[%clk 0:03:00.8]} 4... Nd5 {[%clk 0:03:00.3]} 5. Bd3 {[%clk 0:03:01.4]}
5... d6 {[%clk 0:02:53.9]} 6. exd6 {[%clk 0:03:01.4]} 6... Bxd6 {[%clk
0:02:54.1]} 7. Bc2 {[%clk 0:03:01.1]} 7... Nc6 {[%clk 0:02:54.7]} 8. d4 {[%clk
0:03:00.1]} 8... cxd4 {[%clk 0:02:54.6]} 9. Nxd4 {[%clk 0:03:01]} 9... O-O
{[%clk 0:02:53.3]} 10. Nxc6 {[%clk 0:03:00.6]} 10... bxc6 {[%clk 0:02:54.2]} 11.
O-O {[%clk 0:03:01]} 11... e5 {[%clk 0:02:50.8]} 12. Nd2 {[%clk 0:03:00.4]}
12... f5 {[%clk 0:02:50.4]} 13. Ba4 {[%clk 0:02:49.2]} 13... Bb7 {[%clk
0:02:42.1]} 14. Nc4 {[%clk 0:02:48]} 14... Bc7 {[%clk 0:02:38.8]} 15. Ne3 {[%clk
0:02:47.1]} 15... Kh8 {[%clk 0:02:36.6]} 16. Bc2 {[%clk 0:02:44.1]} 16... e4
{[%clk 0:02:33]} 17. c4 {[%clk 0:01:59.3]} 17... Nb4 {[%clk 0:02:02.3]} 18. Bb1
{[%clk 0:01:56.3]} 18... f4 {[%clk 0:01:30.5]} 19. Bxe4 {[%clk 0:01:27.4]} 19...
fxe3 {[%clk 0:01:25.4]} 20. Qh5 {[%clk 0:01:27.5]} 20... g6 {[%clk 0:00:49]} 21.
Bxg6 {[%clk 0:01:26.5]} 21... Qe7 {[%clk 0:00:28.3]} 22. Bxe3 {[%clk 0:01:23.4]}
22... Kg8 {[%clk 0:00:17.9]} 23. Bd4 {[%clk 0:00:52]} 23... Rf4 {[%clk
0:00:09.6]} 24. Rfe1 {[%clk 0:00:41]} 24... Qh4 {[%clk 0:00:02.8]} 25. Bxh7+
{[%clk 0:00:23.9]} 25... Kf8 {[%clk 0:00:02.2]} 26. Qg6 {[%clk 0:00:24.8]} 26...
Rf7 {[%clk 0:00:01.4]} 27. Bc5+ {[%clk 0:00:09.5]} 27... Bd6 {[%clk 0:00:01.2]}
28. Bxd6+ {[%clk 0:00:07.1]} 1-0